[Event "Chinese League Div-A Rapid 2022"]
[Site "Fuling,Chongqing"]
[Date "2022.09.15"]
[Round "8.24"]
[White "Song, Yuxin"]
[Black "Huang, Qian"]
[Result "1/2-1/2"]
[ECO "B08"]
[WhiteElo "2317"]
[BlackElo "2433"]
[Annotator "ChessBase"]
[PlyCount "70"]
[EventDate "2022.09.07"]
[EventType "team-tourn"]
[EventCountry "CHN"]
[SourceTitle "playchess.com"]
[Source "ChessBase"]
[SourceQuality "1"]
[TimeControl "1500+10"]

1. e4 {[%emt 0:00:01]} g6 {[%emt 0:00:02]} 2. d4 {[%emt 0:00:02]} Bg7 {[%emt 0:00:01]} 3. Nc3 {[%emt 0:00:01]} d6 {[%emt 0:00:05]} 4. Nf3 {[%emt 0:00:02]} Nf6 {[%emt 0:00:06]} 5. Be2 {[%emt 0:00:02]} O-O {[%emt 0:00:08]} 6. O-O {[%emt 0:00:03]} Nc6 {[%emt 0:00:03]} 7. d5 {[%emt 0:00:35]} Nb8 {[%emt 0:00:09]} 8. h3 {[%emt 0:00:48]} c5 {[%emt 0:02:21]} 9. dxc6 {[%emt 0:04:00]} Nxc6 {[%emt 0:02:45]} 10. Be3 {[%emt 0:00:05]} Bd7 {[%emt 0:00:42]} 11. Qd2 {[%emt 0:01:12]} a6 {[%emt 0:01:25]} 12. Rad1 {[%emt 0:01:08]} Rc8 {[%emt 0:00:56]} 13. Nd4 {[%emt 0:00:52]} Nxd4 {[%emt 0:00:33]} 14. Bxd4 {[%emt 0:00:01]} Bc6 {[%emt 0:00:06]} 15. Qe3 {[%emt 0:01:08]} Nd7 {[%emt 0:00:43]} 16. Bxg7 {[%emt 0:00:12]} Kxg7 {[%emt 0:00:02]} 17. Qd4+ {[%emt 0:00:17]} Kg8 {[%emt 0:00:28]} 18. Rfe1 {[%emt 0:00:18]} Qb6 {[%emt 0:00:44]} 19. Qxb6 {[%emt 0:02:27]} Nxb6 {[%emt 0:00:02]} 20. Rd2 {[%emt 0:00:23]} Na4 {[%emt 0:01:18]} 21. Nxa4 {[%emt 0:00:19]} Bxa4 {[%emt 0:00:01]} 22. c3 {[%emt 0:00:07]} Rc5 {[%emt 0:01:03]} 23. Bd1 {[%emt 0:00:08]} Bxd1 {[%emt 0:00:19]} 24. Rexd1 {[%emt 0:00:23]} Rfc8 {[%emt 0:00:04]} 25. f3 {[%emt 0:00:18]} h5 {[%emt 0:00:23]} 26. h4 {[%emt 0:00:09]} Kg7 {[%emt 0:00:15]} 27. Kf2 {[%emt 0:00:02]} Kf6 {[%emt 0:00:20]} 28. Ke3 {[%emt 0:00:03]} Ke6 {[%emt 0:00:20]} 29. Rd5 {[%emt 0:00:08]} Rc4 {[%emt 0:00:31]} 30. R1d4 {[%emt 0:00:15]} Rxd4 {[%emt 0:01:25]} 31. Rxd4 {[%emt 0:00:11]} Rc5 {[%emt 0:00:32]} 32. Kf4 {[%emt 0:01:44]} Kf6 {[%emt 0:00:53]} 33. Ke3 {[%emt 0:00:35]} Ke6 {[%emt 0:00:02]} 34. Kf4 {[%emt 0:00:03]} Kf6 {[%emt 0:00:01]} 35. Ke3 {[%emt 0:00:01]} Ke5 {[%emt 0:00:03]} 1/2-1/2

[Event "Chinese League Div-A Rapid 2022"]
[Site "Fuling,Chongqing"]
[Date "2022.09.15"]
[Round "8.25"]
[White "Li, Xueyi"]
[Black "Wang, Chuqiao"]
[Result "1/2-1/2"]
[ECO "D02"]
[WhiteElo "2280"]
[BlackElo "2037"]
[Annotator "ChessBase"]
[PlyCount "33"]
[EventDate "2022.09.07"]
[EventType "team-tourn"]
[EventCountry "CHN"]
[SourceTitle "playchess.com"]
[Source "ChessBase"]
[SourceQuality "1"]
[TimeControl "1500+10"]

1. d4 {[%emt 0:00:02]} d5 {[%emt 0:00:02]} 2. c4 {[%emt 0:00:10]} e6 {[%emt 0:00:17]} 3. Nf3 {[%emt 0:00:04]} Nf6 {[%emt 0:00:04]} 4. g3 {[%emt 0:00:02]} c5 {[%emt 0:00:12]} 5. cxd5 {[%emt 0:00:10]} Nxd5 {[%emt 0:00:31]} 6. Bg2 {[%emt 0:00:56]} cxd4 {[%emt 0:00:56]} 7. O-O {[%emt 0:00:09]} Be7 {[%emt 0:01:27]} 8. Nxd4 {[%emt 0:00:07]} O-O {[%emt 0:00:25]} 9. e4 {[%emt 0:00:13]} Nb4 {[%emt 0:01:37]} 10. a3 {[%emt 0:01:25]} N4c6 {[%emt 0:00:22]} 11. Nc2 {[%emt 0:00:34]} Qxd1 {[%emt 0:01:22]} 12. Rxd1 {[%emt 0:00:01]} Nd7 {[%emt 0:00:35]} 13. Be3 {[%emt 0:01:55]} Nde5 {[%emt 0:01:21]} 14. Nc3 {[%emt 0:01:41]} Nc4 {[%emt 0:00:57]} 15. b3 {[%emt 0:00:49]} Nxe3 {[%emt 0:01:08]} 16. Nxe3 {[%emt 0:00:02]} Rb8 {[%emt 0:01:03]} 17. b4 {[%emt 0:00:54]} 1/2-1/2

[Event "Chinese League Div-A Rapid 2022"]
[Site "Fuling,Chongqing"]
[Date "2022.09.15"]
[Round "8.26"]
[White "Wang, Hao B"]
[Black "Li, Chao b"]
[Result "0-1"]
[ECO "D71"]
[WhiteElo "2165"]
[BlackElo "2679"]
[Annotator "ChessBase"]
[PlyCount "72"]
[EventDate "2022.09.07"]
[EventType "team-tourn"]
[EventCountry "CHN"]
[SourceTitle "playchess.com"]
[Source "ChessBase"]
[SourceQuality "1"]
[TimeControl "1500+10"]

1. d4 {[%emt 0:00:01]} Nf6 {[%emt 0:00:05]} 2. c4 {[%emt 0:00:03]} g6 {[%emt 0:00:01]} 3. Nf3 {[%emt 0:00:02]} Bg7 {[%emt 0:00:02]} 4. g3 {[%emt 0:00:02]} d5 {[%emt 0:00:03]} 5. cxd5 {[%emt 0:00:02]} Nxd5 {[%emt 0:00:02]} 6. Bg2 {[%emt 0:00:01]} Nb6 {[%emt 0:00:26]} 7. O-O {[%emt 0:00:08]} Nc6 {[%emt 0:00:02]} 8. e3 {[%emt 0:00:04]} e5 {[%emt 0:00:25]} 9. dxe5 {[%emt 0:00:37]} Qxd1 {[%emt 0:00:05]} 10. Rxd1 {[%emt 0:00:02]} Nxe5 {[%emt 0:00:49]} 11. Nxe5 {[%emt 0:01:50]} Bxe5 {[%emt 0:00:02]} 12. Nc3 {[%emt 0:00:34]} c6 {[%emt 0:00:27]} 13. f4 {[%emt 0:01:09]} Bg7 {[%emt 0:00:33]} 14. e4 {[%emt 0:00:16]} O-O {[%emt 0:00:28]} 15. e5 {[%emt 0:00:10]} f6 {[%emt 0:00:13]} 16. Re1 {[%emt 0:06:05]} fxe5 {[%emt 0:00:09]} 17. fxe5 {[%emt 0:00:01]} Nc4 {[%emt 0:00:16]} 18. e6 {[%emt 0:02:11]} Re8 {[%emt 0:00:23]} 19. e7 {[%emt 0:01:01]} Bf5 {[%emt 0:00:24]} 20. Nd5 {[%emt 0:00:54]} Rac8 {[%emt 0:00:04]} 21. Bf4 {[%emt 0:01:32]} Bd4+ {[%emt 0:05:07]} 22. Kh1 {[%emt 0:00:16]} cxd5 {[%emt 0:00:05]} 23. Bxd5+ {[%emt 0:00:03]} Kg7 {[%emt 0:00:02]} 24. Bxb7 {[%emt 0:00:47]} Rc5 {[%emt 0:04:40]} 25. Rad1 {[%emt 0:00:34]} Be5 {[%emt 0:01:43]} 26. b4 {[%emt 0:01:53]} Rc7 {[%emt 0:00:17]} 27. Rxe5 {[%emt 0:06:48]} Rxb7 {[%emt 0:00:03]} 28. Rc5 {[%emt 0:00:23]} Nb6 {[%emt 0:01:51]} 29. Bd6 {[%emt 0:00:28]} Nc8 {[%emt 0:00:32]} 30. Be5+ {[%emt 0:00:33]} Kf7 {[%emt 0:00:14]} 31. Rf1 {[%emt 0:00:14]} Rxb4 {[%emt 0:01:34]} 32. Bc3 {[%emt 0:00:23]} Re4 {[%emt 0:00:28]} 33. h3 {[%emt 0:00:22]} h5 {[%emt 0:00:15]} 34. Rc7 {[%emt 0:00:11]} R4xe7 {[%emt 0:00:22]} 35. Rxe7+ {[%emt 0:00:03]} Rxe7 {[%emt 0:00:20]} 36. g4 {[%emt 0:00:02]} Re3 {[%emt 0:00:02]} 0-1

[Event "Chinese League Div-A Rapid 2022"]
[Site "Fuling,Chongqing"]
[Date "2022.09.15"]
[Round "8.27"]
[White "Ma, Zhonghan"]
[Black "Zhang, Di"]
[Result "1/2-1/2"]
[ECO "D94"]
[WhiteElo "2485"]
[BlackElo "2108"]
[Annotator "ChessBase"]
[PlyCount "114"]
[EventDate "2022.09.07"]
[EventType "team-tourn"]
[EventCountry "CHN"]
[SourceTitle "playchess.com"]
[Source "ChessBase"]
[SourceQuality "1"]
[TimeControl "1500+10"]

1. Nf3 {[%emt 0:00:02]} d5 {[%emt 0:00:02]} 2. d4 {[%emt 0:00:57]} Nf6 {[%emt 0:00:02]} 3. c4 {[%emt 0:00:01]} c6 {[%emt 0:00:10]} 4. e3 {[%emt 0:00:05]} g6 {[%emt 0:00:03]} 5. Nc3 {[%emt 0:00:12]} Bg7 {[%emt 0:00:05]} 6. Bd3 {[%emt 0:00:18]} O-O {[%emt 0:00:04]} 7. O-O {[%emt 0:00:03]} dxc4 {[%emt 0:00:14]} 8. Bxc4 {[%emt 0:00:03]} Bg4 {[%emt 0:00:04]} 9. Be2 {[%emt 0:01:01]} Nbd7 {[%emt 0:00:06]} 10. e4 {[%emt 0:00:05]} Bxf3 {[%emt 0:00:11]} 11. Bxf3 {[%emt 0:00:02]} e5 {[%emt 0:00:02]} 12. Be3 {[%emt 0:00:22]} exd4 {[%emt 0:01:20]} 13. Bxd4 {[%emt 0:00:02]} Qc7 {[%emt 0:00:53]} 14. Qc2 {[%emt 0:03:49]} Rfe8 {[%emt 0:01:54]} 15. Rad1 {[%emt 0:00:15]} Rad8 {[%emt 0:03:36]} 16. g3 {[%emt 0:00:34]} a6 {[%emt 0:01:39]} 17. Be2 {[%emt 0:01:48]} Nf8 {[%emt 0:01:30]} 18. Be3 {[%emt 0:03:48]} Rxd1 {[%emt 0:04:07]} 19. Rxd1 {[%emt 0:00:07]} Qe7 {[%emt 0:00:01]} 20. f3 {[%emt 0:00:26]} h5 {[%emt 0:00:02]} 21. Kg2 {[%emt 0:02:05]} N6d7 {[%emt 0:00:54]} 22. Qd2 {[%emt 0:01:30]} Be5 {[%emt 0:00:44]} 23. Bd3 {[%emt 0:01:02]} Nf6 {[%emt 0:02:44]} 24. Bc2 {[%emt 0:05:39]} a5 {[%emt 0:02:21]} 25. a3 {[%emt 0:01:50]} b5 {[%emt 0:00:52]} 26. Bb6 {[%emt 0:00:25]} a4 {[%emt 0:00:49]} 27. f4 {[%emt 0:01:10]} Bxc3 {[%emt 0:00:57]} 28. Qxc3 {[%emt 0:00:01]} Nxe4 {[%emt 0:00:28]} 29. Qxc6 {[%emt 0:00:01]} Nf6 {[%emt 0:00:19]} 30. Bf2 {[%emt 0:00:11]} Ng4 {[%emt 0:02:04]} 31. Re1 {[%emt 0:00:17]} Ne6 {[%emt 0:00:02]} 32. Qxb5 {[%emt 0:01:12]} Nxf2 {[%emt 0:00:01]} 33. Kxf2 {[%emt 0:00:00]} Qa7+ {[%emt 0:00:01]} 34. Kf1 {[%emt 0:00:08]} Rb8 {[%emt 0:00:28]} 35. Qxa4 {[%emt 0:00:56]} Qxa4 {[%emt 0:00:37]} 36. Bxa4 {[%emt 0:00:00]} Rxb2 {[%emt 0:00:01]} 37. Re2 {[%emt 0:00:12]} Rb1+ {[%emt 0:00:08]} 38. Re1 {[%emt 0:00:02]} Rb2 {[%emt 0:00:01]} 39. Re2 {[%emt 0:00:02]} Rb1+ {[%emt 0:00:01]} 40. Kf2 {[%emt 0:00:01]} Ra1 {[%emt 0:00:17]} 41. Bb3 {[%emt 0:00:20]} Rxa3 {[%emt 0:00:31]} 42. Bxe6 {[%emt 0:00:01]} fxe6 {[%emt 0:00:01]} 43. Rxe6 {[%emt 0:00:01]} Kf7 {[%emt 0:00:04]} 44. Re5 {[%emt 0:00:12]} Ra2+ {[%emt 0:00:01]} 45. Re2 {[%emt 0:00:01]} Ra3 {[%emt 0:00:02]} 46. Kg2 {[%emt 0:00:04]} Kf6 {[%emt 0:00:06]} 47. Rc2 {[%emt 0:00:32]} Rb3 {[%emt 0:00:06]} 48. Kh3 {[%emt 0:00:21]} Kg7 {[%emt 0:00:16]} 49. Kh4 {[%emt 0:00:03]} Kh6 {[%emt 0:00:12]} 50. Rc6 {[%emt 0:00:12]} Rb2 {[%emt 0:00:09]} 51. h3 {[%emt 0:00:14]} Rb4 {[%emt 0:00:13]} 52. Rf6 {[%emt 0:00:07]} Ra4 {[%emt 0:00:20]} 53. g4 {[%emt 0:00:16]} Rxf4 {[%emt 0:00:22]} 54. Rxf4 {[%emt 0:00:03]} g5+ {[%emt 0:00:01]} 55. Kg3 {[%emt 0:00:03]} gxf4+ {[%emt 0:00:02]} 56. Kxf4 {[%emt 0:00:03]} hxg4 {[%emt 0:00:01]} 57. hxg4 {[%emt 0:00:02]} Kg6 {[%emt 0:00:10]} 1/2-1/2

[Event "Chinese League Div-A Rapid 2022"]
[Site "Fuling,Chongqing"]
[Date "2022.09.15"]
[Round "8.28"]
[White "Pang, Tao"]
[Black "Li, Haoyu"]
[Result "1/2-1/2"]
[ECO "B38"]
[WhiteElo "2427"]
[BlackElo "2369"]
[Annotator "ChessBase"]
[PlyCount "61"]
[EventDate "2022.09.07"]
[EventType "team-tourn"]
[EventCountry "CHN"]
[SourceTitle "playchess.com"]
[Source "ChessBase"]
[SourceQuality "1"]
[TimeControl "1500+10"]

1. Nf3 {[%emt 0:00:01]} Nf6 {[%emt 0:00:05]} 2. c4 {[%emt 0:00:02]} c5 {[%emt 0:00:13]} 3. Nc3 {[%emt 0:00:04]} Nc6 {[%emt 0:00:11]} 4. d4 {[%emt 0:00:02]} cxd4 {[%emt 0:00:08]} 5. Nxd4 {[%emt 0:00:01]} g6 {[%emt 0:00:05]} 6. e4 {[%emt 0:00:03]} Bg7 {[%emt 0:00:22]} 7. Be3 {[%emt 0:00:05]} O-O {[%emt 0:00:06]} 8. Be2 {[%emt 0:00:04]} d6 {[%emt 0:00:10]} 9. O-O {[%emt 0:00:04]} Nxd4 {[%emt 0:00:41]} 10. Bxd4 {[%emt 0:00:03]} Be6 {[%emt 0:00:04]} 11. Rc1 {[%emt 0:00:40]} Qa5 {[%emt 0:02:18]} 12. f3 {[%emt 0:04:06]} Rfc8 {[%emt 0:00:16]} 13. Qa4 {[%emt 0:00:39]} Qxa4 {[%emt 0:00:44]} 14. Nxa4 {[%emt 0:00:01]} Nd7 {[%emt 0:00:16]} 15. Be3 {[%emt 0:00:42]} Nb6 {[%emt 0:02:48]} 16. b3 {[%emt 0:03:39]} Nxa4 {[%emt 0:00:08]} 17. bxa4 {[%emt 0:00:01]} b6 {[%emt 0:01:54]} 18. Rc2 {[%emt 0:01:52]} Bd7 {[%emt 0:04:08]} 19. a5 {[%emt 0:00:06]} bxa5 {[%emt 0:00:09]} 20. Rb1 {[%emt 0:00:11]} Rc7 {[%emt 0:02:07]} 21. c5 {[%emt 0:01:58]} dxc5 {[%emt 0:04:09]} 22. Rxc5 {[%emt 0:00:03]} Rxc5 {[%emt 0:00:03]} 23. Bxc5 {[%emt 0:00:01]} Bf6 {[%emt 0:00:41]} 24. Ba6 {[%emt 0:04:17]} Be6 {[%emt 0:01:30]} 25. a4 {[%emt 0:01:22]} Rd8 {[%emt 0:00:16]} 26. Bxa7 {[%emt 0:00:19]} Ra8 {[%emt 0:00:57]} 27. Rb8+ {[%emt 0:00:35]} Rxb8 {[%emt 0:00:02]} 28. Bxb8 {[%emt 0:00:01]} Bd4+ {[%emt 0:00:37]} 29. Kf1 {[%emt 0:00:09]} Bd7 {[%emt 0:00:07]} 30. Bc7 {[%emt 0:00:19]} Bxa4 {[%emt 0:00:08]} 31. Bxa5 {[%emt 0:00:01]} 1/2-1/2

[Event "Chinese League Div-A Rapid 2022"]
[Site "Fuling,Chongqing"]
[Date "2022.09.15"]
[Round "8.29"]
[White "Wang, Yu A."]
[Black "Sun, Fanghui"]
[Result "1/2-1/2"]
[ECO "B81"]
[WhiteElo "2271"]
[BlackElo "2182"]
[Annotator "ChessBase"]
[PlyCount "61"]
[EventDate "2022.09.07"]
[EventType "team-tourn"]
[EventCountry "CHN"]
[SourceTitle "playchess.com"]
[Source "ChessBase"]
[SourceQuality "1"]
[TimeControl "1500+10"]

1. e4 {[%emt 0:00:10]} c5 {[%emt 0:00:01]} 2. Nf3 {[%emt 0:00:00]} d6 {[%emt 0:00:01]} 3. d4 {[%emt 0:00:00]} cxd4 {[%emt 0:00:02]} 4. Nxd4 {[%emt 0:00:00]} Nf6 {[%emt 0:00:01]} 5. Nc3 {[%emt 0:00:00]} a6 {[%emt 0:00:01]} 6. h3 {[%emt 0:00:00]} e6 {[%emt 0:00:07]} 7. g4 {[%emt 0:00:02]} d5 {[%emt 0:00:01]} 8. exd5 {[%emt 0:00:02]} Nxd5 {[%emt 0:00:02]} 9. Nde2 {[%emt 0:00:01]} Bb4 {[%emt 0:00:01]} 10. Bg2 {[%emt 0:00:02]} O-O {[%emt 0:00:03]} 11. O-O {[%emt 0:00:02]} Nxc3 {[%emt 0:00:03]} 12. Nxc3 {[%emt 0:00:02]} Qc7 {[%emt 0:00:01]} 13. Qd4 {[%emt 0:00:01]} Bd6 {[%emt 0:00:07]} 14. Na4 {[%emt 0:00:42]} Nd7 {[%emt 0:01:16]} 15. Qc3 {[%emt 0:00:13]} Rb8 {[%emt 0:00:48]} 16. Be3 {[%emt 0:00:05]} b5 {[%emt 0:03:46]} 17. Qxc7 {[%emt 0:00:05]} Bxc7 {[%emt 0:00:01]} 18. Nc5 {[%emt 0:00:07]} Be5 {[%emt 0:05:24]} 19. Nxd7 {[%emt 0:06:01]} Bxd7 {[%emt 0:00:02]} 20. Rad1 {[%emt 0:00:01]} Rfd8 {[%emt 0:02:46]} 21. Ba7 {[%emt 0:08:10]} Rbc8 {[%emt 0:00:02]} 22. Bb6 {[%emt 0:00:37]} Bc7 {[%emt 0:00:02]} 23. Bxc7 {[%emt 0:00:02]} Rxc7 {[%emt 0:00:02]} 24. Rd6 {[%emt 0:00:01]} Kf8 {[%emt 0:01:11]} 25. Rfd1 {[%emt 0:00:12]} Ke8 {[%emt 0:03:02]} 26. c3 {[%emt 0:03:33]} a5 {[%emt 0:00:29]} 27. Rb6 {[%emt 0:01:39]} Rdc8 {[%emt 0:00:45]} 28. Bf1 {[%emt 0:01:10]} Rc5 {[%emt 0:00:39]} 29. Bg2 {[%emt 0:00:29]} Bc6 {[%emt 0:01:45]} 30. Bxc6+ {[%emt 0:00:22]} R8xc6 {[%emt 0:00:02]} 31. Rb8+ {[%emt 0:00:35]} 1/2-1/2

[Event "Chinese League Div-A Rapid 2022"]
[Site "Fuling,Chongqing"]
[Date "2022.09.15"]
[Round "8.30"]
[White "Li, Ruofan"]
[Black "Shao, Qiyu"]
[Result "1-0"]
[ECO "D85"]
[WhiteElo "2302"]
[BlackElo "1467"]
[Annotator "ChessBase"]
[PlyCount "115"]
[EventDate "2022.09.07"]
[EventType "team-tourn"]
[EventCountry "CHN"]
[SourceTitle "playchess.com"]
[Source "ChessBase"]
[SourceQuality "1"]
[TimeControl "1500+10"]

1. d4 {[%emt 0:00:02]} Nf6 {[%emt 0:00:01]} 2. c4 {[%emt 0:00:02]} g6 {[%emt 0:00:02]} 3. Nc3 {[%emt 0:00:02]} d5 {[%emt 0:00:01]} 4. cxd5 {[%emt 0:00:02]} Nxd5 {[%emt 0:00:02]} 5. Bd2 {[%emt 0:00:02]} Bg7 {[%emt 0:00:11]} 6. e4 {[%emt 0:00:01]} Nxc3 {[%emt 0:00:19]} 7. Bxc3 {[%emt 0:00:01]} O-O {[%emt 0:00:08]} 8. Qd2 {[%emt 0:00:02]} e5 {[%emt 0:04:57]} 9. dxe5 {[%emt 0:00:27]} Qxd2+ {[%emt 0:00:02]} 10. Kxd2 {[%emt 0:00:16]} Bh6+ {[%emt 0:00:16]} 11. Kc2 {[%emt 0:00:44]} a6 {[%emt 0:00:38]} 12. g3 {[%emt 0:04:10]} Nc6 {[%emt 0:00:09]} 13. Bc4 {[%emt 0:02:22]} Rb8 {[%emt 0:07:01]} 14. f4 {[%emt 0:00:18]} b5 {[%emt 0:00:14]} 15. Bd5 {[%emt 0:00:14]} Ne7 {[%emt 0:00:29]} 16. Bb3 {[%emt 0:03:48]} c5 {[%emt 0:00:10]} 17. a3 {[%emt 0:00:23]} b4 {[%emt 0:06:42]} 18. axb4 {[%emt 0:00:37]} cxb4 {[%emt 0:00:02]} 19. Bd4 {[%emt 0:00:34]} Bb7 {[%emt 0:00:23]} 20. Re1 {[%emt 0:00:02]} Rfd8 {[%emt 0:00:25]} 21. Ba7 {[%emt 0:03:16]} Rbc8+ {[%emt 0:00:07]} 22. Kb1 {[%emt 0:00:01]} Nc6 {[%emt 0:02:17]} 23. Bb6 {[%emt 0:00:15]} Nd4 {[%emt 0:01:36]} 24. Ba4 {[%emt 0:02:28]} b3 {[%emt 0:01:00]} 25. Bxd8 {[%emt 0:02:31]} Nc2 {[%emt 0:00:02]} 26. Nf3 {[%emt 0:02:48]} Nxe1 {[%emt 0:00:06]} 27. Rxe1 {[%emt 0:00:02]} Rxd8 {[%emt 0:00:01]} 28. Bxb3 {[%emt 0:00:01]} Rd3 {[%emt 0:00:08]} 29. Bd1 {[%emt 0:00:01]} Rxd1+ {[%emt 0:00:30]} 30. Rxd1 {[%emt 0:00:02]} Bxe4+ {[%emt 0:00:02]} 31. Ka2 {[%emt 0:00:33]} Bxf3 {[%emt 0:00:02]} 32. Rd8+ {[%emt 0:00:21]} Bf8 {[%emt 0:00:03]} 33. b4 {[%emt 0:00:08]} Be2 {[%emt 0:00:09]} 34. h4 {[%emt 0:00:18]} Kg7 {[%emt 0:00:04]} 35. Kb3 {[%emt 0:00:04]} Bb5 {[%emt 0:00:47]} 36. Rb8 {[%emt 0:01:50]} h6 {[%emt 0:00:05]} 37. Rb7 {[%emt 0:00:06]} Kg8 {[%emt 0:00:19]} 38. Ra7 {[%emt 0:00:14]} Be2 {[%emt 0:00:36]} 39. Ka4 {[%emt 0:00:30]} Bc4 {[%emt 0:00:45]} 40. Ka5 {[%emt 0:00:02]} Kg7 {[%emt 0:00:06]} 41. Rc7 {[%emt 0:00:05]} Bb5 {[%emt 0:00:28]} 42. e6 {[%emt 0:00:09]} Bd6 {[%emt 0:00:19]} 43. Rxf7+ {[%emt 0:00:11]} Kg8 {[%emt 0:00:02]} 44. g4 {[%emt 0:00:50]} Be8 {[%emt 0:00:23]} 45. Ra7 {[%emt 0:01:05]} Kf8 {[%emt 0:00:15]} 46. f5 {[%emt 0:00:07]} Be7 {[%emt 0:00:13]} 47. Kxa6 {[%emt 0:00:22]} Bxh4 {[%emt 0:00:08]} 48. Rh7 {[%emt 0:00:25]} Bg5 {[%emt 0:00:09]} 49. b5 {[%emt 0:00:13]} Kg8 {[%emt 0:00:13]} 50. Rc7 {[%emt 0:00:10]} Bf4 {[%emt 0:00:04]} 51. Rc4 {[%emt 0:00:09]} Be5 {[%emt 0:00:10]} 52. b6 {[%emt 0:00:01]} gxf5 {[%emt 0:00:03]} 53. gxf5 {[%emt 0:00:01]} Kg7 {[%emt 0:00:11]} 54. Rc8 {[%emt 0:00:13]} Kf8 {[%emt 0:00:23]} 55. b7 {[%emt 0:00:01]} Ke7 {[%emt 0:00:02]} 56. f6+ {[%emt 0:00:16]} Kxf6 {[%emt 0:00:19]} 57. Rxe8 {[%emt 0:00:01]} h5 {[%emt 0:00:03]} 58. Rh8 {[%emt 0:00:10]} 1-0

[Event "Chinese League Div-A Rapid 2022"]
[Site "Fuling,Chongqing"]
[Date "2022.09.16"]
[Round "9.1"]
[White "Ni, Hua"]
[Black "Pang, Tao"]
[Result "1-0"]
[ECO "C02"]
[WhiteElo "2668"]
[BlackElo "2427"]
[Annotator "ChessBase"]
[PlyCount "87"]
[EventDate "2022.09.07"]
[EventType "team-tourn"]
[EventCountry "CHN"]
[SourceTitle "playchess.com"]
[Source "ChessBase"]
[SourceQuality "1"]
[TimeControl "1500+10"]

1. e4 {[%emt 0:00:01]} e6 {[%emt 0:00:01]} 2. d4 {[%emt 0:00:01]} d5 {[%emt 0:00:02]} 3. e5 {[%emt 0:00:01]} c5 {[%emt 0:00:04]} 4. c3 {[%emt 0:00:01]} Bd7 {[%emt 0:00:03]} 5. Nf3 {[%emt 0:00:01]} Nc6 {[%emt 0:00:02]} 6. Be2 {[%emt 0:00:33]} Nge7 {[%emt 0:00:03]} 7. Na3 {[%emt 0:00:05]} cxd4 {[%emt 0:00:41]} 8. cxd4 {[%emt 0:00:00]} Nf5 {[%emt 0:01:24]} 9. Nc2 {[%emt 0:00:02]} Nb4 {[%emt 0:02:33]} 10. O-O {[%emt 0:00:30]} Nxc2 {[%emt 0:00:01]} 11. Qxc2 {[%emt 0:00:01]} Rc8 {[%emt 0:00:01]} 12. Qb3 {[%emt 0:01:49]} Qb6 {[%emt 0:00:01]} 13. Qxb6 {[%emt 0:00:41]} axb6 {[%emt 0:00:02]} 14. Bd2 {[%emt 0:00:25]} Be7 {[%emt 0:00:43]} 15. Bd3 {[%emt 0:00:50]} O-O {[%emt 0:00:21]} 16. Rfc1 {[%emt 0:00:53]} h6 {[%emt 0:02:10]} 17. Kf1 {[%emt 0:00:28]} Rc6 {[%emt 0:00:53]} 18. Rc3 {[%emt 0:01:51]} Rxc3 {[%emt 0:01:14]} 19. Bxc3 {[%emt 0:00:02]} Ra8 {[%emt 0:00:35]} 20. a3 {[%emt 0:03:34]} Bf8 {[%emt 0:03:02]} 21. Ke2 {[%emt 0:00:00]} Ne7 {[%emt 0:00:09]} 22. Bb4 {[%emt 0:00:00]} Nc6 {[%emt 0:00:02]} 23. Bxf8 {[%emt 0:00:00]} Kxf8 {[%emt 0:00:02]} 24. Ke3 {[%emt 0:00:00]} Ke7 {[%emt 0:00:39]} 25. Rc1 {[%emt 0:00:00]} Rc8 {[%emt 0:00:34]} 26. Rc3 {[%emt 0:00:19]} Na5 {[%emt 0:00:47]} 27. Rxc8 {[%emt 0:00:01]} Bxc8 {[%emt 0:00:01]} 28. b4 {[%emt 0:00:01]} Nc6 {[%emt 0:01:51]} 29. b5 {[%emt 0:00:10]} Na7 {[%emt 0:01:31]} 30. g4 {[%emt 0:01:15]} Bd7 {[%emt 0:00:01]} 31. a4 {[%emt 0:00:01]} g6 {[%emt 0:03:06]} 32. h4 {[%emt 0:02:33]} Nc8 {[%emt 0:00:11]} 33. Nh2 {[%emt 0:02:38]} Be8 {[%emt 0:01:00]} 34. f4 {[%emt 0:00:15]} Kf8 {[%emt 0:01:00]} 35. f5 {[%emt 0:01:00]} Ne7 {[%emt 0:02:17]} 36. f6 {[%emt 0:00:01]} Nc8 {[%emt 0:00:01]} 37. Kf4 {[%emt 0:00:08]} Kg8 {[%emt 0:00:09]} 38. Nf3 {[%emt 0:00:02]} Kf8 {[%emt 0:00:19]} 39. h5 {[%emt 0:00:01]} Kg8 {[%emt 0:00:13]} 40. hxg6 {[%emt 0:01:50]} fxg6 {[%emt 0:00:02]} 41. g5 {[%emt 0:00:01]} h5 {[%emt 0:00:00]} 42. Nh4 {[%emt 0:00:02]} Kh7 {[%emt 0:00:01]} 43. Kg3 {[%emt 0:00:03]} Bf7 {[%emt 0:00:04]} 44. Ng2 {[%emt 0:00:01]} 1-0